[Event "*** SCC Grand Prix: Titled Tuesday Blitz"]
[Site "Chess.com"]
[Date "2020.06.23"]
[Round "3"]
[White "Iball95"]
[Black "Marcin"]
[Result "1-0"]
[WhiteElo "2570"]
[BlackElo "2386"]
[TimeControl "180+1"]
[EndTime "10:27:58 PDT"]
[Termination "Iball95 won on time"]

1. d4 {[%clk 0:02:46.8]} 1... Nf6 {[%clk 0:02:56.9]} 2. Nc3 {[%clk 0:02:46.6]}
2... d5 {[%clk 0:02:55.6]} 3. Bf4 {[%clk 0:02:42.6]} 3... Bf5 {[%clk 0:02:48.6]}
4. e3 {[%clk 0:02:29.6]} 4... e6 {[%clk 0:02:46.8]} 5. Nf3 {[%clk 0:02:18.7]}
5... h6 {[%clk 0:02:44.6]} 6. Ne5 {[%clk 0:02:16.2]} 6... a6 {[%clk 0:02:44.4]}
7. Bd3 {[%clk 0:02:13.5]} 7... Bxd3 {[%clk 0:02:44.2]} 8. cxd3 {[%clk
0:02:14.4]} 8... Bd6 {[%clk 0:02:40]} 9. O-O {[%clk 0:02:14.5]} 9... O-O {[%clk
0:02:39.4]} 10. a3 {[%clk 0:02:14.7]} 10... Nbd7 {[%clk 0:02:13.1]} 11. b4
{[%clk 0:02:11]} 11... Qe7 {[%clk 0:02:07.5]} 12. Qb3 {[%clk 0:02:09.1]} 12...
Nh5 {[%clk 0:01:59]} 13. Nxd7 {[%clk 0:02:08.4]} 13... Qxd7 {[%clk 0:01:49.3]}
14. Bg3 {[%clk 0:02:07.2]} 14... Bxg3 {[%clk 0:01:45.6]} 15. hxg3 {[%clk
0:02:08.1]} 15... Nf6 {[%clk 0:01:44.1]} 16. a4 {[%clk 0:02:06.6]} 16... Ng4
{[%clk 0:01:35.9]} 17. Rfc1 {[%clk 0:01:58.5]} 17... Qe7 {[%clk 0:01:35.6]} 18.
Ne2 {[%clk 0:01:55.2]} 18... c6 {[%clk 0:01:32.4]} 19. b5 {[%clk 0:01:54.2]}
19... axb5 {[%clk 0:01:32.7]} 20. axb5 {[%clk 0:01:55.1]} 20... Qg5 {[%clk
0:01:21.8]} 21. Nf4 {[%clk 0:01:50.3]} 21... Qf5 {[%clk 0:00:57.4]} 22. Rab1
{[%clk 0:01:36.4]} 22... g5 {[%clk 0:00:55.8]} 23. Nh3 {[%clk 0:01:36.4]} 23...
cxb5 {[%clk 0:00:48.4]} 24. Qxb5 {[%clk 0:01:37.3]} 24... Ra2 {[%clk 0:00:48.3]}
25. Rb2 {[%clk 0:01:35.8]} 25... Rxb2 {[%clk 0:00:44.7]} 26. Qxb2 {[%clk
0:01:36.7]} 26... Qxd3 {[%clk 0:00:43.7]} 27. Qxb7 {[%clk 0:01:36.4]} 27... Qd2
{[%clk 0:00:40.3]} 28. Rb1 {[%clk 0:01:35.1]} 28... Nxe3 {[%clk 0:00:36.3]} 29.
fxe3 {[%clk 0:01:34.1]} 29... Qxe3+ {[%clk 0:00:36.8]} 30. Kh2 {[%clk
0:01:33.8]} 30... Qxd4 {[%clk 0:00:37.2]} 31. Qe7 {[%clk 0:01:29.5]} 31... Qe4
{[%clk 0:00:29]} 32. Rf1 {[%clk 0:01:25.4]} 32... Qg6 {[%clk 0:00:22.5]} 33. Nf2
{[%clk 0:01:21.8]} 33... Rc8 {[%clk 0:00:15.9]} 34. Kg1 {[%clk 0:01:21.7]} 34...
Rc2 {[%clk 0:00:12.7]} 35. Ng4 {[%clk 0:01:20.1]} 35... h5 {[%clk 0:00:05.6]}
36. Ne5 {[%clk 0:01:17.5]} 36... Qg7 {[%clk 0:00:03.4]} 37. Rxf7 {[%clk
0:01:15.4]} 1-0

[Event "*** SCC Grand Prix: Titled Tuesday Blitz"]
[Site "Chess.com"]
[Date "2020.06.23"]
[Round "3"]
[White "CrushingKings"]
[Black "kuba2006"]
[Result "0-1"]
[WhiteElo "2518"]
[BlackElo "2351"]
[TimeControl "180+1"]
[EndTime "10:28:02 PDT"]
[Termination "kuba2006 won by checkmate"]

1. e4 {[%clk 0:03:00.9]} 1... Nf6 {[%clk 0:03:00.9]} 2. e5 {[%clk 0:03:01]} 2...
Nd5 {[%clk 0:03:00.7]} 3. Nc3 {[%clk 0:03:01.5]} 3... Nxc3 {[%clk 0:03:00.3]} 4.
dxc3 {[%clk 0:03:02.4]} 4... d6 {[%clk 0:02:59.6]} 5. Bc4 {[%clk 0:03:02.5]}
5... e6 {[%clk 0:02:57.2]} 6. Nf3 {[%clk 0:03:02.7]} 6... d5 {[%clk 0:02:56.5]}
7. Bd3 {[%clk 0:03:03]} 7... c5 {[%clk 0:02:55.5]} 8. h4 {[%clk 0:03:02]} 8...
c4 {[%clk 0:02:55.3]} 9. Be2 {[%clk 0:03:01.6]} 9... Nc6 {[%clk 0:02:55.4]} 10.
Bf4 {[%clk 0:03:01.4]} 10... Bc5 {[%clk 0:02:53.5]} 11. Qd2 {[%clk 0:03:01.3]}
11... Qb6 {[%clk 0:02:52.9]} 12. O-O {[%clk 0:02:55.2]} 12... Bd7 {[%clk
0:02:48.7]} 13. a3 {[%clk 0:02:49.1]} 13... O-O-O {[%clk 0:02:47.2]} 14. b4
{[%clk 0:02:46.5]} 14... cxb3 {[%clk 0:02:46.4]} 15. Rfb1 {[%clk 0:02:46.4]}
15... Bxf2+ {[%clk 0:02:06.5]} 16. Kf1 {[%clk 0:02:42.2]} 16... Bc5 {[%clk
0:01:33.1]} 17. Rxb3 {[%clk 0:02:41.4]} 17... Qc7 {[%clk 0:01:26.4]} 18. Rab1
{[%clk 0:02:41.2]} 18... Na5 {[%clk 0:01:26.2]} 19. R3b2 {[%clk 0:02:40.9]}
19... Bxa3 {[%clk 0:01:16.3]} 20. Ra2 {[%clk 0:02:40.2]} 20... Nc4 {[%clk
0:01:15.9]} 21. Qe1 {[%clk 0:02:17.7]} 21... a6 {[%clk 0:00:51.2]} 22. Kg1
{[%clk 0:02:13.1]} 22... Bc5+ {[%clk 0:00:48.9]} 23. Kh1 {[%clk 0:02:12.7]}
23... h6 {[%clk 0:00:45.7]} 24. Bxc4 {[%clk 0:02:06.1]} 24... dxc4 {[%clk
0:00:46.6]} 25. Be3 {[%clk 0:02:07]} 25... g5 {[%clk 0:00:34.2]} 26. Qf2 {[%clk
0:01:52.5]} 26... Bxe3 {[%clk 0:00:28.6]} 27. Qxe3 {[%clk 0:01:53.4]} 27... Bc6
{[%clk 0:00:24.8]} 28. Nd4 {[%clk 0:01:45]} 28... Bd5 {[%clk 0:00:24.7]} 29. h5
{[%clk 0:01:36.5]} 29... Rhf8 {[%clk 0:00:24.3]} 30. Rab2 {[%clk 0:01:36.5]}
30... f5 {[%clk 0:00:19.2]} 31. Ne2 {[%clk 0:01:17.3]} 31... f4 {[%clk
0:00:16.8]} 32. Qa7 {[%clk 0:01:17.1]} 32... f3 {[%clk 0:00:12.1]} 33. Nd4
{[%clk 0:01:09.5]} 33... f2 {[%clk 0:00:10.1]} 34. Nf3 {[%clk 0:01:00.4]} 34...
Rxf3 {[%clk 0:00:07.6]} 35. gxf3 {[%clk 0:01:01.3]} 35... Bxf3+ {[%clk
0:00:07.6]} 36. Kh2 {[%clk 0:00:59.9]} 36... Qxe5+ {[%clk 0:00:08.5]} 37. Kh3
{[%clk 0:01:00.4]} 37... g4+ {[%clk 0:00:08.3]} 38. Kh4 {[%clk 0:01:00.4]} 38...
Qh2# {[%clk 0:00:08.8]} 0-1

[Event "*** SCC Grand Prix: Titled Tuesday Blitz"]
[Site "Chess.com"]
[Date "2020.06.23"]
[Round "3"]
[White "emperor87"]
[Black "vova-79"]
[Result "1/2-1/2"]
[WhiteElo "2704"]
[BlackElo "2437"]
[TimeControl "180+1"]
[EndTime "10:28:06 PDT"]
[Termination "Game drawn by repetition"]

1. e4 {[%clk 0:03:00.9]} 1... e6 {[%clk 0:02:57.9]} 2. d4 {[%clk 0:03:00.1]}
2... d5 {[%clk 0:02:57.7]} 3. Nd2 {[%clk 0:03:00.8]} 3... dxe4 {[%clk
0:02:57.3]} 4. Nxe4 {[%clk 0:03:00.4]} 4... Nd7 {[%clk 0:02:57.9]} 5. Bg5 {[%clk
0:03:00.3]} 5... Ngf6 {[%clk 0:02:58.8]} 6. Bd3 {[%clk 0:02:59.2]} 6... Be7
{[%clk 0:02:57.7]} 7. Bxf6 {[%clk 0:02:57.7]} 7... Nxf6 {[%clk 0:02:51.8]} 8.
Nf3 {[%clk 0:02:57.7]} 8... O-O {[%clk 0:02:51]} 9. Qe2 {[%clk 0:02:57.9]} 9...
c5 {[%clk 0:02:41.2]} 10. dxc5 {[%clk 0:02:53.1]} 10... Bxc5 {[%clk 0:02:30.2]}
11. Nxc5 {[%clk 0:02:51.3]} 11... Qa5+ {[%clk 0:02:27.7]} 12. Qd2 {[%clk
0:02:50.8]} 12... Qxc5 {[%clk 0:02:25.2]} 13. O-O-O {[%clk 0:02:50.7]} 13... Bd7
{[%clk 0:02:23.6]} 14. Kb1 {[%clk 0:02:50.6]} 14... Rfd8 {[%clk 0:02:19.7]} 15.
Rhe1 {[%clk 0:02:50.1]} 15... Bb5 {[%clk 0:02:15.2]} 16. Ne5 {[%clk 0:02:49.8]}
16... Bxd3 {[%clk 0:02:09.2]} 17. Nxd3 {[%clk 0:02:49.5]} 17... Qb5 {[%clk
0:02:08]} 18. Re5 {[%clk 0:02:44.8]} 18... Rd5 {[%clk 0:02:06.7]} 19. Rxd5
{[%clk 0:02:44.3]} 19... Qxd5 {[%clk 0:02:05.9]} 20. Nf4 {[%clk 0:02:44.2]}
20... Qxd2 {[%clk 0:02:04.3]} 21. Rxd2 {[%clk 0:02:44]} 21... Kf8 {[%clk
0:02:04.7]} 22. f3 {[%clk 0:02:43.7]} 22... Ke7 {[%clk 0:02:03.9]} 23. c4 {[%clk
0:02:43.8]} 23... Rd8 {[%clk 0:02:00.2]} 24. Rxd8 {[%clk 0:02:43.1]} 24... Kxd8
{[%clk 0:02:01.1]} 25. Kc2 {[%clk 0:02:43.6]} 25... Kd7 {[%clk 0:02:00.2]} 26.
Kc3 {[%clk 0:02:43.9]} 26... Kd6 {[%clk 0:01:59.6]} 27. b4 {[%clk 0:02:43.8]}
27... b6 {[%clk 0:01:58.5]} 28. a4 {[%clk 0:02:42.8]} 28... e5 {[%clk
0:01:57.9]} 29. Nd3 {[%clk 0:02:41.4]} 29... e4 {[%clk 0:01:57.6]} 30. fxe4
{[%clk 0:02:41.1]} 30... Nxe4+ {[%clk 0:01:57]} 31. Kd4 {[%clk 0:02:41.4]} 31...
Ng5 {[%clk 0:01:43.7]} 32. c5+ {[%clk 0:02:39.9]} 32... bxc5+ {[%clk 0:01:43.6]}
33. bxc5+ {[%clk 0:02:39.1]} 33... Kc6 {[%clk 0:01:42.1]} 34. Ne5+ {[%clk
0:02:37.8]} 34... Kc7 {[%clk 0:01:40.7]} 35. Kd5 {[%clk 0:02:37.2]} 35... f6
{[%clk 0:01:32.4]} 36. Nc4 {[%clk 0:02:37.1]} 36... Kd7 {[%clk 0:01:20.5]} 37.
Nd6 {[%clk 0:02:34.7]} 37... h5 {[%clk 0:01:15.6]} 38. c6+ {[%clk 0:02:34.2]}
38... Kd8 {[%clk 0:01:14.4]} 39. h4 {[%clk 0:02:32.3]} 39... Nh7 {[%clk
0:01:13]} 40. Nb5 {[%clk 0:02:29.4]} 40... a6 {[%clk 0:01:12.3]} 41. c7+ {[%clk
0:02:26.4]} 41... Kd7 {[%clk 0:01:10.8]} 42. c8=Q+ {[%clk 0:02:18.3]} 42... Kxc8
{[%clk 0:01:09.9]} 43. Nd6+ {[%clk 0:02:18.3]} 43... Kd7 {[%clk 0:01:09.7]} 44.
Ne4 {[%clk 0:02:18.4]} 44... g5 {[%clk 0:01:02.2]} 45. Nc5+ {[%clk 0:02:13.2]}
45... Kc8 {[%clk 0:01:01.8]} 46. Nxa6 {[%clk 0:02:06.9]} 46... gxh4 {[%clk
0:01:00.9]} 47. Nc5 {[%clk 0:02:05]} 47... Ng5 {[%clk 0:00:58.6]} 48. Kc6 {[%clk
0:02:04.9]} 48... Nf7 {[%clk 0:00:52.8]} 49. a5 {[%clk 0:02:04.2]} 49... Ne5+
{[%clk 0:00:52.4]} 50. Kb6 {[%clk 0:02:04.4]} 50... Nc4+ {[%clk 0:00:50.7]} 51.
Kb5 {[%clk 0:02:04.5]} 51... Nd6+ {[%clk 0:00:50.5]} 52. Kc6 {[%clk 0:02:03.7]}
52... Nc4 {[%clk 0:00:50.5]} 53. a6 {[%clk 0:02:03.8]} 53... Kb8 {[%clk
0:00:50.9]} 54. Kb5 {[%clk 0:01:54.5]} 54... Nd6+ {[%clk 0:00:49.5]} 55. Ka5
{[%clk 0:01:54.8]} 55... Ka7 {[%clk 0:00:44.7]} 56. Nd7 {[%clk 0:01:54.7]} 56...
f5 {[%clk 0:00:43.6]} 57. Ne5 {[%clk 0:01:52.8]} 57... f4 {[%clk 0:00:39.3]} 58.
Nf3 {[%clk 0:01:52.3]} 58... Nc4+ {[%clk 0:00:34.7]} 59. Kb5 {[%clk 0:01:52.4]}
59... Nd6+ {[%clk 0:00:33.9]} 60. Kc6 {[%clk 0:01:51.8]} 60... Nf5 {[%clk
0:00:32.6]} 61. Kb5 {[%clk 0:01:50.8]} 61... Nd6+ {[%clk 0:00:32]} 62. Ka5
{[%clk 0:01:46]} 62... Nc4+ {[%clk 0:00:31.5]} 63. Kb5 {[%clk 0:01:45.9]} 63...
Nd6+ {[%clk 0:00:31]} 1/2-1/2

[Event "*** SCC Grand Prix: Titled Tuesday Blitz"]
[Site "Chess.com"]
[Date "2020.06.23"]
[Round "3"]
[White "IMDT02"]
[Black "RianKapriaga"]
[Result "0-1"]
[WhiteElo "2461"]
[BlackElo "2189"]
[TimeControl "180+1"]
[EndTime "10:28:07 PDT"]
[Termination "RianKapriaga won by resignation"]

1. d4 {[%clk 0:03:00.9]} 1... Nf6 {[%clk 0:02:58.6]} 2. Bf4 {[%clk 0:03:01.3]}
2... e6 {[%clk 0:02:58]} 3. e3 {[%clk 0:03:01.9]} 3... Bd6 {[%clk 0:02:57.2]} 4.
Bxd6 {[%clk 0:03:00.7]} 4... cxd6 {[%clk 0:02:58.1]} 5. Nf3 {[%clk 0:03:01.6]}
5... d5 {[%clk 0:02:57]} 6. Bd3 {[%clk 0:03:00.3]} 6... d6 {[%clk 0:02:57.2]} 7.
O-O {[%clk 0:03:00.3]} 7... Nc6 {[%clk 0:02:57.2]} 8. Nbd2 {[%clk 0:03:00.8]}
8... O-O {[%clk 0:02:56.5]} 9. c3 {[%clk 0:02:59.4]} 9... a6 {[%clk 0:02:55.5]}
10. e4 {[%clk 0:02:56.1]} 10... dxe4 {[%clk 0:02:52.8]} 11. Nxe4 {[%clk
0:02:57]} 11... b5 {[%clk 0:02:43.8]} 12. Qe2 {[%clk 0:02:54]} 12... Bb7 {[%clk
0:02:40]} 13. Rfe1 {[%clk 0:02:52.8]} 13... Rc8 {[%clk 0:02:29.1]} 14. a3 {[%clk
0:02:51.4]} 14... Na5 {[%clk 0:02:18.1]} 15. a4 {[%clk 0:02:38.1]} 15... Nc4
{[%clk 0:02:14]} 16. axb5 {[%clk 0:02:33.3]} 16... axb5 {[%clk 0:02:08.7]} 17.
Nxf6+ {[%clk 0:02:18.2]} 17... Qxf6 {[%clk 0:02:06.4]} 18. Ra7 {[%clk
0:01:45.4]} 18... Bxf3 {[%clk 0:01:58.7]} 19. gxf3 {[%clk 0:01:46.3]} 19... d5
{[%clk 0:01:52.8]} 20. Ra6 {[%clk 0:01:41.3]} 20... Ra8 {[%clk 0:01:40.4]} 21.
Rxa8 {[%clk 0:01:39.5]} 21... Rxa8 {[%clk 0:01:38.4]} 22. b3 {[%clk 0:01:40.1]}
22... Nd6 {[%clk 0:01:31.1]} 23. Kg2 {[%clk 0:01:10.7]} 23... Rc8 {[%clk
0:01:18.8]} 24. Qd2 {[%clk 0:01:07.5]} 24... Nf5 {[%clk 0:01:10.9]} 25. Bxb5
{[%clk 0:00:45.2]} 25... Nh4+ {[%clk 0:01:03]} 26. Kf1 {[%clk 0:00:43.1]} 26...
Nxf3 {[%clk 0:00:56.8]} 27. Qd3 {[%clk 0:00:43.2]} 27... Nxe1 {[%clk 0:00:42.8]}
28. Kxe1 {[%clk 0:00:44.1]} 28... Qh6 {[%clk 0:00:38.5]} 29. c4 {[%clk
0:00:43.3]} 29... dxc4 {[%clk 0:00:32.9]} 30. bxc4 {[%clk 0:00:43.5]} 30... Qxh2
{[%clk 0:00:29.5]} 31. Qe4 {[%clk 0:00:43.5]} 31... Qc7 {[%clk 0:00:17]} 32. c5
{[%clk 0:00:43.6]} 32... Qa5+ {[%clk 0:00:14.6]} 0-1

[Event "*** SCC Grand Prix: Titled Tuesday Blitz"]
[Site "Chess.com"]
[Date "2020.06.23"]
[Round "3"]
[White "Atanejhad"]
[Black "Vandros57"]
[Result "1-0"]
[WhiteElo "2405"]
[BlackElo "2189"]
[TimeControl "180+1"]
[EndTime "10:28:07 PDT"]
[Termination "Atanejhad won on time"]

1. d4 {[%clk 0:03:00]} 1... d5 {[%clk 0:02:58.5]} 2. c4 {[%clk 0:02:59.6]} 2...
e6 {[%clk 0:02:57.7]} 3. Nf3 {[%clk 0:02:59.6]} 3... Nf6 {[%clk 0:02:56.9]} 4.
Nc3 {[%clk 0:02:59.9]} 4... Nbd7 {[%clk 0:02:55.8]} 5. e3 {[%clk 0:02:57.7]}
5... Be7 {[%clk 0:02:54]} 6. Bd3 {[%clk 0:02:57.3]} 6... O-O {[%clk 0:02:52.7]}
7. O-O {[%clk 0:02:57]} 7... b6 {[%clk 0:02:50.9]} 8. cxd5 {[%clk 0:02:56.8]}
8... exd5 {[%clk 0:02:46.3]} 9. Qe2 {[%clk 0:02:56.6]} 9... Bb7 {[%clk
0:02:43.9]} 10. Ba6 {[%clk 0:02:56.7]} 10... Bxa6 {[%clk 0:02:40.3]} 11. Qxa6
{[%clk 0:02:56.6]} 11... c6 {[%clk 0:02:38.3]} 12. Ne5 {[%clk 0:02:52.4]} 12...
Qc8 {[%clk 0:02:29.4]} 13. Qa4 {[%clk 0:02:44.5]} 13... b5 {[%clk 0:02:23.9]}
14. Qc2 {[%clk 0:02:39]} 14... Nxe5 {[%clk 0:02:11.9]} 15. dxe5 {[%clk
0:02:38.4]} 15... Nd7 {[%clk 0:02:11.6]} 16. f4 {[%clk 0:02:38.7]} 16... Nb6
{[%clk 0:02:01]} 17. Bd2 {[%clk 0:02:37.9]} 17... Nc4 {[%clk 0:01:58.9]} 18. b3
{[%clk 0:02:35.6]} 18... Nxd2 {[%clk 0:01:57.2]} 19. Qxd2 {[%clk 0:02:36.5]}
19... f6 {[%clk 0:01:53.3]} 20. Rac1 {[%clk 0:02:29.5]} 20... fxe5 {[%clk
0:01:51.2]} 21. Nxd5 {[%clk 0:02:24.4]} 21... Qd8 {[%clk 0:01:38.5]} 22. Nxe7+
{[%clk 0:02:23.1]} 22... Qxe7 {[%clk 0:01:37.5]} 23. Rxc6 {[%clk 0:02:23.2]}
23... Rad8 {[%clk 0:01:29.4]} 24. Qc2 {[%clk 0:02:14.1]} 24... exf4 {[%clk
0:01:19.6]} 25. exf4 {[%clk 0:02:14.8]} 25... Qe3+ {[%clk 0:01:14.2]} 26. Qf2
{[%clk 0:02:14]} 26... Qxf2+ {[%clk 0:01:10.6]} 27. Rxf2 {[%clk 0:02:14.9]}
27... Rd1+ {[%clk 0:01:08.8]} 28. Rf1 {[%clk 0:02:15.4]} 28... Rxf1+ {[%clk
0:01:08.5]} 29. Kxf1 {[%clk 0:02:16.3]} 29... Rxf4+ {[%clk 0:01:08.1]} 30. Ke2
{[%clk 0:02:17.2]} 30... Re4+ {[%clk 0:00:56.3]} 31. Kd3 {[%clk 0:02:13.2]}
31... Re7 {[%clk 0:00:54.5]} 32. Rc5 {[%clk 0:02:10]} 32... Rb7 {[%clk
0:00:50.8]} 33. Kc3 {[%clk 0:02:07.2]} 33... a5 {[%clk 0:00:47.2]} 34. Kd4
{[%clk 0:02:06.4]} 34... Kf7 {[%clk 0:00:45.8]} 35. Kd5 {[%clk 0:02:05.6]} 35...
Rd7+ {[%clk 0:00:34.3]} 36. Kc6 {[%clk 0:02:04.3]} 36... Rd2 {[%clk 0:00:33.6]}
37. Rxb5 {[%clk 0:01:56.9]} 37... Rxa2 {[%clk 0:00:32.9]} 38. Rg5 {[%clk
0:01:56.2]} 38... Kf6 {[%clk 0:00:30.8]} 39. Rg3 {[%clk 0:01:55.5]} 39... a4
{[%clk 0:00:30.2]} 40. b4 {[%clk 0:01:54.9]} 40... Rb2 {[%clk 0:00:28.7]} 41. b5
{[%clk 0:01:54.3]} 41... Rb3 {[%clk 0:00:28.7]} 42. b6 {[%clk 0:01:45.8]} 42...
Rb2 {[%clk 0:00:18.1]} 43. b7 {[%clk 0:01:43.8]} 43... Rc2+ {[%clk 0:00:15.6]}
44. Kb6 {[%clk 0:01:43.8]} 44... Rb2+ {[%clk 0:00:09.7]} 45. Ka7 {[%clk
0:01:43.8]} 1-0

[Event "*** SCC Grand Prix: Titled Tuesday Blitz"]
[Site "Chess.com"]
[Date "2020.06.23"]
[Round "3"]
[White "kirillshevchenko"]
[Black "goldaxe"]
[Result "1-0"]
[WhiteElo "2929"]
[BlackElo "2298"]
[TimeControl "180+1"]
[EndTime "10:28:08 PDT"]
[Termination "kirillshevchenko won by checkmate"]

1. Nc3 {[%clk 0:03:00.9]} 1... c5 {[%clk 0:02:59.1]} 2. Nf3 {[%clk 0:02:58.4]}
2... g6 {[%clk 0:02:58.1]} 3. e3 {[%clk 0:02:49.4]} 3... Bg7 {[%clk 0:02:57.5]}
4. d4 {[%clk 0:02:50]} 4... cxd4 {[%clk 0:02:57.2]} 5. exd4 {[%clk 0:02:50.9]}
5... Nf6 {[%clk 0:02:55.8]} 6. Bf4 {[%clk 0:02:49.3]} 6... O-O {[%clk 0:02:54]}
7. Bd3 {[%clk 0:02:49.1]} 7... d6 {[%clk 0:02:52.9]} 8. h3 {[%clk 0:02:47.6]}
8... Nc6 {[%clk 0:02:52.6]} 9. O-O {[%clk 0:02:47.1]} 9... Nb4 {[%clk 0:02:41]}
10. Bc4 {[%clk 0:02:30.9]} 10... Bf5 {[%clk 0:02:33.4]} 11. Bb3 {[%clk
0:02:30.6]} 11... Rc8 {[%clk 0:02:25]} 12. Re1 {[%clk 0:02:29.2]} 12... a6
{[%clk 0:02:15]} 13. Qd2 {[%clk 0:02:23.6]} 13... Nd7 {[%clk 0:02:01.9]} 14. Bh6
{[%clk 0:02:16.3]} 14... Nb6 {[%clk 0:01:55.3]} 15. Bxg7 {[%clk 0:01:58.4]}
15... Kxg7 {[%clk 0:01:56.2]} 16. d5 {[%clk 0:01:52.4]} 16... a5 {[%clk
0:01:49.7]} 17. Nd4 {[%clk 0:01:43]} 17... Bd7 {[%clk 0:00:43.9]} 18. a3 {[%clk
0:01:23.5]} 18... Na6 {[%clk 0:00:43.8]} 19. h4 {[%clk 0:01:24.1]} 19... Nc4
{[%clk 0:00:42.9]} 20. Bxc4 {[%clk 0:01:21.2]} 20... Rxc4 {[%clk 0:00:43.8]} 21.
h5 {[%clk 0:01:21.7]} 21... Qb6 {[%clk 0:00:38.3]} 22. h6+ {[%clk 0:01:14.3]}
22... Kg8 {[%clk 0:00:38]} 23. Rxe7 {[%clk 0:00:57]} 23... Rxd4 {[%clk
0:00:37.4]} 24. Qg5 {[%clk 0:00:57.1]} 24... f6 {[%clk 0:00:26]} 25. Qe3 {[%clk
0:00:55.8]} 25... Bf5 {[%clk 0:00:15.4]} 26. Rg7+ {[%clk 0:00:46.4]} 26... Kh8
{[%clk 0:00:15.4]} 27. Qe7 {[%clk 0:00:47]} 27... Qd8 {[%clk 0:00:05.1]} 28.
Rxh7+ {[%clk 0:00:46.5]} 28... Kg8 {[%clk 0:00:05.7]} 29. Qg7# {[%clk
0:00:46.6]} 1-0

[Event "*** SCC Grand Prix: Titled Tuesday Blitz"]
[Site "Chess.com"]
[Date "2020.06.23"]
[Round "3"]
[White "PawnEatingZombie"]
[Black "KubaGepard"]
[Result "0-1"]
[WhiteElo "2095"]
[BlackElo "2341"]
[TimeControl "180+1"]
[EndTime "10:28:08 PDT"]
[Termination "KubaGepard won on time"]

1. d4 {[%clk 0:03:00.9]} 1... d5 {[%clk 0:02:35.5]} 2. c4 {[%clk 0:02:59.4]}
2... dxc4 {[%clk 0:02:35.3]} 3. e4 {[%clk 0:02:58.9]} 3... Nf6 {[%clk
0:02:32.5]} 4. e5 {[%clk 0:02:58.3]} 4... Nd5 {[%clk 0:02:32.3]} 5. Bxc4 {[%clk
0:02:58.4]} 5... Bf5 {[%clk 0:02:32.9]} 6. Qb3 {[%clk 0:02:53]} 6... c6 {[%clk
0:02:32.6]} 7. Bxd5 {[%clk 0:02:49]} 7... cxd5 {[%clk 0:02:33.5]} 8. Qxb7 {[%clk
0:02:49]} 8... Qc8 {[%clk 0:02:33.8]} 9. Qxc8+ {[%clk 0:02:49.3]} 9... Bxc8
{[%clk 0:02:34.3]} 10. Nc3 {[%clk 0:02:47.7]} 10... e6 {[%clk 0:02:33.9]} 11.
Nge2 {[%clk 0:02:36.5]} 11... Nc6 {[%clk 0:02:31.8]} 12. O-O {[%clk 0:02:33.5]}
12... a5 {[%clk 0:02:29]} 13. a4 {[%clk 0:02:30.6]} 13... Ba6 {[%clk 0:02:27.7]}
14. Rd1 {[%clk 0:02:27.8]} 14... Rb8 {[%clk 0:02:25.7]} 15. Rb1 {[%clk
0:01:39.2]} 15... Bc4 {[%clk 0:02:19.2]} 16. Bd2 {[%clk 0:01:35.7]} 16... Bb4
{[%clk 0:02:16.1]} 17. b3 {[%clk 0:01:22]} 17... Bd3 {[%clk 0:02:10.2]} 18. Rbc1
{[%clk 0:01:19.9]} 18... Kd7 {[%clk 0:02:09.9]} 19. Nf4 {[%clk 0:01:11.6]} 19...
Ba6 {[%clk 0:02:03.5]} 20. Be3 {[%clk 0:01:06.6]} 20... Rhc8 {[%clk 0:01:39.6]}
21. Nd3 {[%clk 0:01:05.6]} 21... Ke7 {[%clk 0:01:29.4]} 22. Nxb4 {[%clk
0:00:58.7]} 22... Nxb4 {[%clk 0:01:28.9]} 23. Nb5 {[%clk 0:00:35.5]} 23... Nc2
{[%clk 0:01:23.9]} 24. Nd6 {[%clk 0:00:20.6]} 24... Rc6 {[%clk 0:00:54.4]} 25.
Rd2 {[%clk 0:00:20.4]} 25... Nxd4 {[%clk 0:00:54.3]} 26. Rxc6 {[%clk 0:00:15]}
26... Nxc6 {[%clk 0:00:53.9]} 27. Bc5 {[%clk 0:00:12.6]} 27... Kd7 {[%clk
0:00:52]} 28. Nxf7 {[%clk 0:00:12.1]} 28... Rxb3 {[%clk 0:00:51.1]} 29. h3
{[%clk 0:00:11.3]} 29... Rc3 {[%clk 0:00:48.4]} 30. Bb6 {[%clk 0:00:08.1]} 30...
Rc4 {[%clk 0:00:49]} 31. Ng5 {[%clk 0:00:05.9]} 31... h6 {[%clk 0:00:46.8]} 32.
Nf3 {[%clk 0:00:03.6]} 32... Rxa4 {[%clk 0:00:47.5]} 33. Rb2 {[%clk 0:00:01.9]}
33... Ra1+ {[%clk 0:00:48]} 34. Kh2 {[%clk 0:00:01.4]} 34... Rc1 {[%clk
0:00:48.9]} 0-1

[Event "*** SCC Grand Prix: Titled Tuesday Blitz"]
[Site "Chess.com"]
[Date "2020.06.23"]
[Round "3"]
[White "wonderfultime"]
[Black "NewBornNow"]
[Result "1-0"]
[WhiteElo "2971"]
[BlackElo "2694"]
[TimeControl "180+1"]
[EndTime "10:28:09 PDT"]
[Termination "wonderfultime won by resignation"]

1. d4 {[%clk 0:03:00.9]} 1... Nf6 {[%clk 0:02:55.9]} 2. Nf3 {[%clk 0:03:01]}
2... g6 {[%clk 0:02:54.1]} 3. Bg5 {[%clk 0:03:00.9]} 3... Bg7 {[%clk 0:02:54]}
4. Nbd2 {[%clk 0:03:01.2]} 4... d6 {[%clk 0:02:49.8]} 5. c3 {[%clk 0:03:01.4]}
5... O-O {[%clk 0:02:47.8]} 6. e4 {[%clk 0:03:01.7]} 6... Nbd7 {[%clk
0:02:44.4]} 7. Bc4 {[%clk 0:03:01.7]} 7... e5 {[%clk 0:02:41.9]} 8. O-O {[%clk
0:03:02.3]} 8... c6 {[%clk 0:02:40.2]} 9. Re1 {[%clk 0:03:02.4]} 9... h6 {[%clk
0:02:37.1]} 10. Bh4 {[%clk 0:03:02.2]} 10... Re8 {[%clk 0:02:22.2]} 11. Qc2
{[%clk 0:03:01.5]} 11... Qc7 {[%clk 0:02:13.6]} 12. Bb3 {[%clk 0:02:55]} 12...
b6 {[%clk 0:02:11.1]} 13. Rad1 {[%clk 0:02:52.5]} 13... Ba6 {[%clk 0:02:07.8]}
14. Nf1 {[%clk 0:02:44.2]} 14... Rad8 {[%clk 0:02:01.7]} 15. Bg3 {[%clk
0:02:29.6]} 15... Nh5 {[%clk 0:01:59.3]} 16. Bh4 {[%clk 0:02:28.7]} 16... Ndf6
{[%clk 0:01:54.7]} 17. dxe5 {[%clk 0:02:10.2]} 17... dxe5 {[%clk 0:01:53.6]} 18.
Ne3 {[%clk 0:02:10.8]} 18... Rxd1 {[%clk 0:01:49.4]} 19. Rxd1 {[%clk 0:02:08.1]}
19... Nf4 {[%clk 0:01:45.8]} 20. Rd2 {[%clk 0:01:52.1]} 20... Bb7 {[%clk
0:01:11.1]} 21. Nc4 {[%clk 0:01:42.2]} 21... g5 {[%clk 0:01:07]} 22. Bg3 {[%clk
0:01:40.2]} 22... Bf8 {[%clk 0:01:03.4]} 23. h4 {[%clk 0:01:36.6]} 23... N6h5
{[%clk 0:00:51.1]} 24. hxg5 {[%clk 0:01:30.2]} 24... Nxg3 {[%clk 0:00:50.1]} 25.
fxg3 {[%clk 0:01:30]} 25... Ng6 {[%clk 0:00:47.9]} 26. Qd1 {[%clk 0:01:22.7]}
26... Bc8 {[%clk 0:00:45]} 27. Nd6 {[%clk 0:01:20.3]} 27... Bxd6 {[%clk
0:00:37.9]} 28. Rxd6 {[%clk 0:01:21.2]} 28... Kg7 {[%clk 0:00:23.4]} 29. gxh6+
{[%clk 0:01:20.3]} 29... Kxh6 {[%clk 0:00:23.1]} 30. Nh4 {[%clk 0:00:49.5]}
30... Kg7 {[%clk 0:00:14.2]} 31. Bxf7 {[%clk 0:00:39.9]} 1-0